bitfinex/quotes_ETHUSD_20250730
["timestamp","ask_amount","ask_price","bid_price","bid_amount"]
[1753870328805,0.24527572,3804.4,3804.3,6.78175944]
[1753870329185,0.8076,3804.5,3804.4,2.62853538]
[1753870329385,1.05288587,3804.5,3804.4,2.62853538]
[1753870329933,0.24528587,3804.5,3804.4,3.45573538]
[1753870331318,0.24528587,3804.5,3804.4,4.47948486]
[1753870331501,0.04,3804.9,3804.7,2.62832812]
[1753870331825,0.04,3804.9,3804.8,6.78245904]
[1753870331999,0.28524456,3804.9,3804.8,7.24815904]
[1753870332196,0.53048911,3804.9,3804.8,7.24815904]
[1753870332402,0.28522066,3804.9,3804.8,7.24815904]
[1753870332937,0.28522066,3804.9,3804.8,6.78245904]
[1753870333825,0.28522066,3804.9,3804.8,4.1542]
[1753870334029,0.75222066,3804.9,3804.8,6.78245904]
[1753870334528,0.28522066,3804.9,3804.8,6.78245904]
[1753870336126,0.28522066,3804.9,3804.8,4.1542]
[1753870336326,0.28522066,3804.9,3804.8,6.78245904]
[1753870336531,0.28522066,3804.9,3804.8,4.1542]
[1753870336847,0.28522066,3804.9,3804.8,0.1312]
[1753870337012,0.28522066,3804.9,3804.8,4.02]
[1753870337834,0.28522066,3804.9,3804.8,6.64825904]
[1753870341118,0.04,3804.9,3804.8,6.64825904]
[1753870341499,0.04,3804.9,3804.8,7.11395904]
[1753870342521,0.04,3804.9,3804.8,6.64825904]
[1753870342707,0.507,3804.9,3804.8,6.64525904]
[1753870342916,0.75222066,3804.9,3804.8,6.64525904]
[1753870343744,0.28522066,3804.9,3804.8,6.64525904]
[1753870344606,0.75222066,3804.9,3804.8,6.64525904]
[1753870345126,0.75222066,3804.9,3804.8,4.017]
[1753870345451,0.75222066,3804.9,3804.8,4.016]
[1753870345657,0.75222066,3804.9,3804.8,6.64425904]
[1753870346559,0.04,3804.9,3804.8,9.10841421]
[1753870347215,0.04,3804.9,3804.8,12.10841421]
[1753870347412,0.04,3804.9,3804.8,12.86541421]
[1753870349661,0.04,3804.9,3804.8,12.32541421]
[1753870350655,0.04,3804.9,3804.8,9.32641421]
[1753870350842,0.04,3804.9,3804.8,8.33945904]
[1753870351387,0.04,3804.9,3804.8,3.08975904]
[1753870351571,1.3358,3804.9,3804.7,0.1312]
[1753870351723,1.3132,3804.9,3804.8,4.027]
[1753870351919,1.76113709,3804.9,3804.8,4.027]
[1753870352122,1.76113709,3804.9,3804.7,0.1312]
[1753870352373,1.76113709,3804.9,3804.2,2.62865994]
[1753870352374,0.97,3804.8,3804.2,2.62865994]
[1753870352527,0.24548417,3804.7,3804.4,2.62848809]
[1753870352752,0.4963,3804.7,3804.5,4.027]
[1753870353093,0.71918178,3804.6,3804.5,4.027]
[1753870353291,1.21548178,3804.6,3804.5,4.027]
[1753870353851,2.02408178,3804.6,3804.5,4.027]
[1753870354698,2.26950118,3804.6,3804.0,0.001]
[1753870354998,0.74178178,3804.5,3804.1,4.1612]
[1753870355151,0.24548178,3804.4,3804.1,4.1612]
[1753870355353,0.74178178,3804.3,3804.1,4.1612]
[1753870355556,0.74178178,3804.2,3804.0,0.001]
[1753870355768,0.24548178,3804.1,3804.0,2.76101177]
[1753870355963,0.24548178,3804.1,3804.0,4.1622]
[1753870355964,0.74178178,3804.1,3804.0,4.1622]
[1753870356792,0.74178178,3804.1,3804.0,6.79101177]
[1753870356965,0.74178178,3804.1,3804.0,4.1622]
[1753870357384,0.4963,3804.1,3804.0,6.79101177]
[1753870357681,0.4963,3804.1,3804.0,4.1622]
[1753870357992,0.4963,3804.1,3804.0,6.79101177]
[1753870358197,1.3049,3804.6,3804.2,2.62865651]
[1753870358498,0.24524303,3804.5,3804.3,4.028]
[1753870358788,0.74154303,3804.4,3804.3,4.028]
[1753870359878,1.21524303,3804.4,3804.3,4.028]
[1753870360081,1.43074733,3804.4,3804.3,4.028]
[1753870361095,0.95704733,3804.4,3804.3,4.028]
[1753870361409,0.74154303,3804.4,3804.3,4.028]
[1753870361988,0.24524303,3804.4,3804.3,4.028]
[1753870363396,0.74154303,3804.4,3804.3,4.028]
[1753870365004,0.7664,3804.3,3804.0,0.001]
[1753870365163,0.27174391,3804.2,3804.1,4.025]
[1753870365361,0.4963,3804.2,3804.1,4.025]
[1753870365814,0.7664,3804.3,3804.1,4.025]
[1753870365978,0.4963,3804.2,3804.1,4.025]
[1753870367644,0.7664,3804.3,3804.1,4.025]
[1753870367810,0.7588,3804.6,3804.2,2.75987357]
[1753870367974,0.24495125,3804.5,3804.3,4.024]
[1753870369033,0.24495125,3804.5,3804.4,3.53653538]
[1753870369301,0.04,3804.9,3804.7,2.62826317]
[1753870369491,0.04,3804.9,3804.8,4.024]
[1753870370009,0.28496395,3804.9,3804.7,0.1312]
[1753870370306,1.92960776,3804.8,3804.1,0.1312]
[1753870370510,1.92960776,3804.8,3804.2,4.024]
[1753870370511,0.98620688,3804.7,3804.2,4.024]
[1753870370713,0.1312,3804.5,3804.2,4.024]
[1753870370911,0.8325,3804.3,3804.0,0.001]
[1753870371093,0.15770088,3804.2,3804.0,0.001]
[1753870371297,0.37612826,3804.2,3804.1,4.025]
[1753870371499,0.87242826,3804.2,3804.1,4.025]
[1753870372819,0.87242826,3804.2,3804.0,0.001]
[1753870373027,0.6049,3804.2,3804.1,4.025]
[1753870373206,0.6049,3804.2,3804.0,0.001]
[1753870373207,0.51985109,3804.2,3804.0,0.001]
[1753870373516,0.71861109,3804.1,3804.0,0.001]
[1753870373690,1.21491109,3804.1,3804.0,4.026]
[1753870374780,0.74121109,3804.1,3804.0,4.026]
[1753870375496,0.4963,3804.1,3804.0,4.026]
[1753870376374,0.4963,3804.1,3804.0,4.025]
[1753870376678,0.6765997,3804.1,3804.0,4.025]
[1753870377014,5.04250896,3804.1,3804.0,0.001]
[1753870378115,7.67125163,3804.1,3804.0,0.001]
[1753870378281,5.04250896,3804.1,3804.0,0.001]
[1753870379004,10.67125163,3804.1,3804.0,0.001]
[1753870379208,10.91662657,3804.1,3804.0,0.001]
[1753870379775,10.67125163,3804.1,3804.0,0.001]
[1753870379977,10.81855574,3804.1,3804.0,0.001]
[1753870380392,10.67125163,3804.1,3804.0,0.001]
[1753870381916,7.56880896,3804.1,3804.0,0.001]
[1753870382079,10.19755163,3804.1,3804.0,0.001]
[1753870382279,10.64455163,3804.1,3804.0,0.001]
[1753870383293,11.284188,3804.1,3804.0,0.001]
[1753870384832,8.14497874,3804.1,3804.0,0.001]
[1753870385727,12.16697874,3804.1,3804.0,0.001]
[1753870386237,12.16697874,3804.1,3803.8,0.001]
[1753870386238,3.46158088,3803.9,3803.8,0.001]
[1753870386457,7.23241725,3803.9,3803.8,0.001]
[1753870386584,8.15141725,3803.9,3803.8,0.001]
[1753870387297,12.17341725,3803.9,3803.8,0.001]
[1753870387801,11.67341725,3803.9,3803.8,0.001]
[1753870388125,13.34058787,3803.9,3803.8,0.001]
[1753870388329,13.34029012,3803.9,3803.8,0.001]
[1753870388902,43.34029012,3803.9,3803.8,0.001]
[1753870389901,13.34029012,3803.9,3803.8,0.001]
[1753870391030,10.29240924,3803.9,3803.8,0.001]
[1753870391255,12.92129012,3803.9,3803.8,0.001]
[1753870391394,10.29240924,3803.9,3803.8,0.001]
[1753870391594,6.27040924,3803.9,3803.8,0.001]
[1753870391829,1.60323862,3803.9,3803.8,0.001]
[1753870392039,1.60323862,3803.9,3803.8,0.8953]
[1753870394348,0.77053862,3803.9,3803.8,0.8953]
[1753870394635,0.77039016,3803.9,3803.8,0.8953]
[1753870395338,0.77039016,3803.9,3803.8,0.4379]
[1753870396131,0.77039016,3803.9,3803.8,0.8953]
[1753870397539,0.63919016,3803.9,3803.8,0.8953]
[1753870397766,0.49202798,3803.9,3803.8,1.58660138]
[1753870398347,0.49202798,3803.9,3803.8,4.21555137]
[1753870398925,0.49202798,3803.9,3803.8,1.58660138]
[1753870399309,0.6392977,3803.9,3803.8,1.58660138]
[1753870399510,0.49202798,3803.9,3803.8,1.58660138]
[1753870399718,0.6392977,3803.9,3803.8,4.21555137]
[1753870399918,0.49202798,3803.9,3803.8,4.21555137]
[1753870400238,0.63930821,3803.9,3803.8,4.21555137]
[1753870400437,0.49202798,3803.9,3803.8,4.21555137]
[1753870400812,0.63933918,3803.9,3803.8,4.21555137]
[1753870401018,0.63933918,3803.9,3803.8,5.04345137]
[1753870401351,0.49202798,3803.9,3803.8,5.04345137]
[1753870401555,0.49202798,3803.9,3803.8,5.06974086]
[1753870401716,0.49202798,3803.9,3803.8,5.04345137]
[1753870401923,0.49202798,3803.9,3803.8,5.06974086]
[1753870402122,0.49161648,3803.9,3803.8,5.06974086]
[1753870402332,0.49161648,3803.9,3803.8,5.04345137]
[1753870402533,0.24560249,3803.9,3803.8,5.61974086]
[1753870402850,0.002,3804.4,3804.3,3.40780447]
[1753870403053,0.24767806,3804.4,3804.3,8.09673831]
[1753870403255,0.49334041,3804.4,3804.3,8.20165227]
[1753870403423,0.49334041,3804.4,3804.3,9.09595227]
[1753870404423,0.49334041,3804.4,3804.3,9.12775227]
[1753870404624,0.24767806,3804.4,3804.3,9.12775227]
[1753870406077,0.49327061,3804.4,3804.3,9.12775227]
[1753870406288,0.49327061,3804.4,3804.3,1.8765]
[1753870406584,0.96527061,3804.4,3804.3,4.058]
[1753870406728,1.4008353,3804.4,3804.3,4.058]
[1753870406930,0.6406353,3804.4,3804.3,4.058]
[1753870407954,0.49327061,3804.4,3804.3,4.9523]
[1753870408540,0.49319912,3804.4,3804.3,4.4949]
[1753870409253,0.49320131,3804.4,3804.3,4.058]
[1753870409575,0.24760657,3804.4,3804.3,4.058]
[1753870409728,1.3563667,3804.4,3804.3,0.04]
[1753870410069,0.9093667,3804.4,3804.3,4.06]
[1753870414071,1.15479444,3804.4,3804.3,4.06]
[1753870414764,1.15461175,3804.4,3804.3,4.06]
[1753870417188,1.90741175,3804.4,3804.3,0.04]
[1753870417335,2.37501175,3804.4,3804.3,0.04]
[1753870417529,2.12958787,3804.4,3804.3,0.04]
[1753870417735,5.37500293,3804.4,3804.3,0.04]
[1753870417932,4.90740293,3804.4,3804.3,0.04]
[1753870420773,4.43540293,3804.4,3804.3,0.04]
[1753870421159,4.91350293,3804.4,3804.3,0.04]
[1753870423068,5.0608388,3804.4,3804.3,0.04]
[1753870423265,7.68937418,3804.4,3804.3,0.04]
[1753870423709,8.15729098,3804.4,3804.3,0.04]
[1753870425115,8.00995511,3804.4,3804.3,0.04]
[1753870425291,8.15734609,3804.4,3804.3,0.04]
[1753870425882,8.15741826,3804.4,3804.3,0.04]
[1753870426416,8.15753189,3804.4,3804.3,0.04]
[1753870426763,12.17353189,3804.4,3804.3,0.04]
[1753870426958,14.30653189,3804.4,3804.3,0.04]
[1753870427161,12.72353189,3804.4,3804.3,0.04]
[1753870427395,5.62888088,3803.9,3803.8,0.001]
[1753870427591,15.18263134,3803.9,3803.8,0.001]
[1753870427895,16.12833134,3803.9,3803.8,0.001]
[1753870428203,9.89270447,3803.9,3803.8,0.001]
[1753870428382,9.41460447,3803.9,3803.8,0.001]
[1753870428695,5.39860447,3803.9,3803.8,0.001]
[1753870428864,8.02748535,3803.9,3803.8,0.001]
[1753870429065,8.50558535,3803.9,3803.8,0.001]
[1753870432599,5.87673294,3803.9,3803.8,0.001]
[1753870432965,8.50561382,3803.9,3803.8,0.001]
[1753870435327,8.97321382,3803.9,3803.8,0.001]
[1753870435504,8.97312416,3803.9,3803.8,0.001]
[1753870436126,9.52312416,3803.9,3803.8,0.001]
[1753870436446,39.52312416,3803.9,3803.8,0.001]
[1753870436794,9.52312416,3803.9,3803.8,0.001]
[1753870436995,11.10612416,3803.9,3803.8,0.001]
[1753870437351,9.62852616,3803.9,3803.8,0.001]
[1753870437645,39.62852616,3803.9,3803.8,0.001]
[1753870438344,39.62852616,3803.9,3803.8,1e-08]
[1753870438651,37.96944998,3803.8,3803.7,0.001]
[1753870438800,45.19438978,3803.8,3803.7,0.001]
[1753870439016,46.14008978,3803.8,3803.7,0.001]
[1753870439520,46.14008978,3803.8,3803.7,1e-08]
[1753870439833,6.17915735,3803.5,3803.4,0.001]
[1753870440015,46.53292986,3803.5,3803.4,0.001]
[1753870440351,5.62991794,3802.4,3802.3,0.001]
[1753870440494,5.87560144,3802.4,3802.3,0.001]
[1753870440695,6.00680144,3802.4,3802.3,0.9389]
[1753870440925,7.02232966,3802.4,3802.3,0.001]
[1753870441224,4.39241172,3802.4,3802.3,0.001]
[1753870441426,4.39241172,3802.4,3802.3,0.4465]
[1753870441635,7.15629533,3802.4,3802.3,0.9389]
[1753870441851,7.15629533,3802.4,3802.3,0.001]
[1753870441990,7.64119533,3802.4,3802.3,0.001]
[1753870443292,6.91061183,3802.4,3802.3,0.001]
[1753870443494,7.15578737,3802.4,3802.3,0.001]
[1753870444136,7.15579389,3802.4,3802.3,0.001]
[1753870444435,7.15574481,3802.4,3802.3,0.001]
[1753870446302,7.15574481,3802.4,3802.3,0.4465]
[1753870446740,8.54282687,3802.4,3802.3,0.9389]
[1753870446898,7.39333298,3802.4,3802.3,0.9389]
[1753870447238,3.37633298,3802.4,3802.3,0.9389]
[1753870447398,3.37627049,3802.4,3802.3,0.9389]
[1753870447810,3.1312,3802.4,3802.3,0.9389]
[1753870449542,3.3763006,3802.4,3802.3,0.9389]
[1753870449706,3.1312,3802.4,3802.3,0.9389]
[1753870450043,3.37630764,3802.4,3802.3,0.9389]
[1753870451530,3.7139384,3802.4,3802.3,0.001]
[1753870451739,3.95894142,3802.4,3802.3,0.001]
[1753870451938,4.44384216,3802.4,3802.3,0.001]
[1753870452283,7.0737601,3802.4,3802.3,0.001]
[1753870452426,8.0308452,3802.4,3802.3,0.001]
[1753870453256,4.91602726,3802.4,3802.3,0.001]
[1753870453453,4.1060474,3802.4,3802.3,0.9389]
[1753870453659,3.76841664,3802.4,3802.3,0.9389]
[1753870454156,6.39833458,3802.4,3802.3,0.9389]
[1753870454529,6.39833458,3802.4,3802.3,0.4465]
[1753870454736,6.39831546,3802.4,3802.3,0.001]
[1753870454940,6.88321546,3802.4,3802.3,0.001]
[1753870455143,9.3591162,3802.4,3802.3,0.001]
[1753870455651,8.8742162,3802.4,3802.3,0.001]
[1753870455874,8.8742162,3802.4,3802.3,0.4465]
[1753870456160,8.8742162,3802.4,3802.3,0.001]
[1753870456753,6.24429826,3802.4,3802.3,0.001]
[1753870456954,7.9185311,3802.4,3802.3,0.9389]
[1753870457527,7.9185311,3802.4,3802.3,0.001]
[1753870457726,7.9185311,3802.4,3802.3,0.9389]
[1753870458138,7.9185311,3802.4,3802.3,0.4465]
[1753870459361,8.4034311,3802.4,3802.3,0.001]
[1753870459867,8.55054903,3802.4,3802.3,0.001]
[1753870461180,5.43573109,3802.4,3802.3,0.001]
[1753870461608,3.76843035,3802.4,3802.3,0.9389]
[1753870465172,3.63723035,3802.4,3802.3,0.9389]
[1753870465887,0.63723035,3802.4,3802.3,0.9389]
[1753870466090,0.63759186,3802.4,3802.3,0.9389]
[1753870466290,0.63759186,3802.4,3802.3,1.7077]
[1753870469110,0.63842043,3802.4,3802.3,1.7077]
[1753870474412,0.63872462,3802.4,3802.3,1.7077]
[1753870475717,0.39373998,3802.4,3802.3,1.7077]
[1753870475918,0.63953529,3802.4,3802.3,1.7077]
[1753870477493,1.23693529,3802.4,3802.3,0.001]
[1753870477696,1.9255997,3802.4,3802.3,0.001]
[1753870477910,7.55551764,3802.4,3802.3,0.001]
[1753870478115,7.52901676,3802.4,3802.3,0.001]
[1753870478310,3.97429882,3802.4,3802.3,0.001]
[1753870478496,0.77073529,3802.4,3802.3,0.9055]
[1753870478687,0.63953529,3802.4,3802.3,0.9055]
[1753870478887,0.49175166,3802.4,3802.3,3.53548711]
[1753870479090,0.49175166,3802.4,3802.3,11.48318762]
[1753870479289,0.24595635,3802.4,3802.3,12.89851324]
[1753870479626,0.49181074,3802.4,3802.3,9.88671273]
[1753870480388,0.24595635,3802.4,3802.3,9.88671273]
[1753870480591,0.24645489,3803.2,3802.6,2.62977639]
[1753870480821,0.64017136,3803.1,3802.7,0.9045]
[1753870480991,0.64017136,3803.0,3802.8,0.9045]
[1753870481191,0.64017136,3802.9,3802.8,4.016]
[1753870481803,0.64017136,3802.9,3802.8,4.9205]
[1753870482338,0.64010091,3802.9,3802.8,4.9205]
[1753870484094,0.1312,3803.3,3802.8,4.9205]
[1753870484303,0.1312,3803.3,3802.9,0.9045]
[1753870484695,0.1312,3803.3,3803.0,0.9045]
[1753870485231,0.1312,3803.3,3802.8,4.016]
[1753870485435,0.1312,3803.3,3803.1,0.9045]
[1753870485840,0.5974,3803.3,3802.9,0.459]
[1753870486036,0.4662,3803.2,3802.9,0.459]
[1753870486332,0.4662,3803.2,3802.9,0.9045]
[1753870488334,0.1312,3803.3,3803.0,0.9045]
[1753870488841,0.1312,3803.3,3803.1,0.9045]
[1753870489041,0.002,3803.4,3803.3,2.62929561]
[1753870489219,0.002,3803.4,3803.3,3.38139561]
[1753870489534,0.002,3803.4,3803.3,4.83589561]
[1753870490713,0.002,3803.4,3803.3,4.28589561]
[1753870494543,0.002,3803.4,3803.3,8.30089561]
[1753870496325,0.002,3803.4,3803.3,9.7888578]
[1753870497437,0.002,3803.4,3803.3,4.28589561]
[1753870497619,0.002,3803.4,3803.3,8.30089561]
[1753870499252,0.002,3803.4,3803.3,8.43209561]
[1753870499748,0.002,3803.4,3803.3,8.98209561]
[1753870500453,0.99919999,3803.8,3803.7,3.39601911]
[1753870500615,0.99919999,3803.8,3803.7,10.55301962]
[1753870500821,0.99919999,3803.8,3803.7,11.61581962]
[1753870502351,0.002,3803.8,3803.7,5.8438]
[1753870502551,0.002,3803.8,3803.7,0.1312]
[1753870502751,0.4847,3803.8,3803.7,4.014]
[1753870503332,0.4847,3803.8,3803.6,0.1312]
[1753870503630,0.002,3803.8,3803.7,4.014]
[1753870504218,0.4847,3803.8,3803.7,4.014]
[1753870504419,0.4847,3803.8,3803.7,2.62901911]
[1753870504651,0.002,3803.8,3803.7,2.62901911]
[1753870504949,0.002,3803.8,3803.7,4.014]
[1753870505150,0.002,3803.8,3803.7,6.64301911]
[1753870505385,0.002,3803.8,3803.7,7.67651638]
[1753870506349,0.002,3803.8,3803.7,10.81951689]
[1753870507054,0.002,3803.8,3803.7,11.59641689]
[1753870507436,0.002,3803.8,3803.7,10.59921689]
[1753870511228,0.002,3803.8,3803.7,3.40591911]
[1753870511461,0.002,3803.8,3803.7,6.64301911]
[1753870512365,0.002,3803.8,3803.7,9.78601962]
[1753870513941,0.002,3803.8,3803.7,4.014]
[1753870514151,0.002,3803.8,3803.7,6.64301911]
[1753870514354,0.002,3803.8,3803.7,6.64201911]
[1753870517552,0.24773699,3803.8,3803.7,6.64201911]
[1753870518089,0.002,3803.8,3803.7,6.64201911]
[1753870518995,0.24773699,3803.8,3803.7,6.64201911]
[1753870519899,0.002,3803.8,3803.7,6.64201911]
[1753870520778,0.24773699,3803.8,3803.7,6.64201911]
[1753870521989,0.002,3803.8,3803.7,6.64201911]
[1753870522157,0.002,3803.8,3803.7,7.97518655]
[1753870522360,0.002,3803.8,3803.7,8.75998655]
[1753870526283,0.002,3803.8,3803.7,7.42681911]
[1753870526491,0.002,3803.8,3803.7,6.64201911]
[1753870526656,0.24838232,3803.8,3803.7,6.64201911]
[1753870526853,0.002,3803.8,3803.7,6.64201911]
[1753870527299,0.24838815,3803.8,3803.7,6.64201911]
[1753870527673,0.24838815,3803.8,3803.6,2.76023598]
[1753870527891,0.24653572,3803.7,3803.6,2.76023598]
[1753870528103,0.24653572,3803.7,3803.6,6.77323598]
[1753870528801,0.24653572,3803.7,3803.6,0.1312]
[1753870529002,0.24654777,3803.7,3803.6,4.1442]
[1753870529503,0.24654777,3803.7,3803.6,6.77328823]
[1753870529796,0.7702,3803.8,3803.7,2.62901911]
[1753870529985,0.24855881,3803.8,3803.7,2.62901911]
[1753870532008,0.002,3803.8,3803.7,2.62901911]
[1753870533393,0.24853534,3803.8,3803.7,4.013]
[1753870533988,0.24853534,3803.8,3803.6,2.76022172]
[1753870533989,0.8158,3803.7,3803.6,0.1312]
[1753870534229,1.08883622,3803.7,3803.0,2.6294356]
[1753870534385,0.4930921,3803.6,3803.2,0.1312]
[1753870534587,0.1332,3803.8,3803.0,0.1312]
[1753870534588,0.8158,3803.4,3803.0,0.1312]
[1753870534785,0.8158,3803.2,3803.1,4.013]
[1753870534994,1.19353534,3803.2,3803.1,4.013]
[1753870535908,1.06233534,3803.2,3803.1,4.013]
[1753870536118,1.06233534,3803.2,3802.9,0.001]
[1753870536419,0.24653534,3803.1,3803.0,4.013]
[1753870536958,0.24653534,3803.1,3802.9,0.001]
[1753870537123,0.9297,3803.0,3802.9,0.001]
[1753870537467,1.34732353,3803.0,3802.9,0.001]
[1753870537618,0.9297,3803.0,3802.9,0.001]
[1753870538468,0.7985,3803.0,3802.9,0.001]
[1753870538618,0.1312,3803.2,3802.9,0.001]
[1753870538821,0.4727,3803.1,3802.9,0.001]
[1753870539357,0.1312,3803.2,3802.9,0.001]
[1753870539667,0.4727,3803.0,3802.9,0.001]
[1753870540042,0.6039,3803.2,3802.9,0.001]
[1753870540434,0.4727,3803.1,3802.9,0.001]
[1753870540934,0.4727,3803.0,3802.9,0.001]
[1753870541122,0.60819,3803.0,3802.9,0.001]
[1753870541458,1.96439,3803.0,3802.9,0.001]
[1753870541630,0.1312,3803.0,3802.9,0.001]
[1753870541956,0.4727,3803.2,3802.9,0.001]
[1753870542558,0.8238,3803.0,3802.9,0.001]
[1753870542766,3.83071808,3803.0,3802.9,0.001]
[1753870542964,8.81172297,3803.0,3802.9,0.001]
[1753870543123,8.78522209,3803.0,3802.9,0.001]
[1753870543539,6.15571907,3803.0,3802.9,0.001]
[1753870544336,5.11561506,3803.0,3802.9,0.001]
[1753870544539,7.74511808,3803.0,3802.9,0.001]
[1753870545163,4.8694,3803.0,3802.9,0.001]
[1753870547166,4.4277,3803.0,3802.9,0.001]
[1753870547384,3.0,3803.0,3802.9,0.9215]
[1753870547660,3.0,3803.0,3802.9,0.001]
[1753870548558,3.0,3803.0,3802.9,0.9215]
[1753870548772,3.0,3803.0,3802.9,0.4635]
[1753870548968,3.0,3803.0,3802.9,0.001]
[1753870549130,0.1312,3803.2,3802.9,0.9215]
[1753870549328,0.1312,3803.2,3803.0,0.9205]
[1753870549963,0.1312,3803.2,3803.0,0.4625]
[1753870550172,0.6039,3803.2,3802.9,0.001]
[1753870550332,0.1312,3803.2,3802.9,0.001]
[1753870550658,0.4727,3803.1,3802.9,0.001]
[1753870550876,0.49198286,3803.0,3802.9,0.001]
[1753870551538,0.49198286,3803.0,3802.9,0.4635]
[1753870551726,0.24599025,3803.0,3802.9,0.4635]
[1753870551952,0.24599025,3803.0,3802.9,0.9215]
[1753870552148,0.24599025,3803.0,3802.9,0.4635]
[1753870552451,0.37719025,3803.2,3802.9,0.4635]
[1753870552647,0.49191064,3803.1,3802.9,0.4635]
[1753870552885,0.1312,3803.2,3802.9,0.001]
[1753870552886,0.24599025,3803.0,3802.9,0.001]
[1753870553262,0.24599025,3803.1,3802.9,0.4635]
[1753870553575,0.24599025,3803.0,3802.9,0.4635]
[1753870554890,0.24599025,3803.1,3802.9,0.4635]
[1753870555093,0.24599025,3803.0,3802.9,0.001]
[1753870555287,0.7795,3803.6,3803.0,0.1312]
[1753870555288,0.9107,3803.6,3803.0,0.1312]
[1753870555602,0.63943158,3803.5,3803.0,6.64350227]
[1753870555790,0.63943158,3803.4,3803.1,0.9205]
[1753870556094,0.63943158,3803.3,3803.1,0.9205]
[1753870556268,0.63940754,3803.2,3803.1,0.9205]
[1753870557706,0.63940754,3803.2,3803.1,4.78895617]
[1753870557866,0.49184643,3803.2,3803.1,5.6361505]
[1753870558064,0.49184643,3803.2,3803.1,5.60985617]
[1753870558558,0.49183505,3803.2,3803.1,5.60985617]
[1753870559160,0.49183505,3803.2,3803.1,6.15985617]
[1753870559362,0.24591124,3803.2,3803.1,6.15985617]
[1753870559560,0.002,3803.8,3803.6,3.39748823]
[1753870559764,0.24794914,3803.7,3803.6,7.54268823]
[1753870560005,0.64146797,3803.7,3803.6,5.8341]
[1753870560174,0.64146797,3803.7,3803.6,0.1312]
[1753870560366,1.25419477,3803.7,3803.6,4.014]
[1753870561362,0.64146797,3803.7,3803.6,4.014]
[1753870561605,0.64146797,3803.7,3803.6,4.9456]
[1753870561766,0.49389841,3803.7,3803.6,4.9456]
[1753870562170,0.64158294,3803.7,3803.6,4.9456]
[1753870562367,0.64158294,3803.7,3803.6,4.014]
[1753870562610,1.26392123,3803.7,3803.2,0.1312]
[1753870562786,0.63958294,3803.6,3803.3,4.014]
[1753870562985,0.63958294,3803.5,3803.3,4.014]
[1753870563297,0.49189841,3803.4,3803.3,4.014]
[1753870564178,0.63970755,3803.4,3803.3,4.014]
[1753870564573,1.12200755,3803.4,3803.3,4.014]
[1753870565115,1.80215831,3803.4,3803.3,4.014]
[1753870565298,2.26510259,3803.4,3802.9,0.001]
[1753870565506,1.12285183,3803.3,3803.2,4.014]
[1753870565977,1.25405183,3803.3,3803.2,4.014]
[1753870566174,1.52792209,3803.3,3803.2,4.014]
[1753870567698,1.39672209,3803.3,3803.2,4.014]
[1753870567901,1.52792209,3803.3,3803.2,4.014]
[1753870568198,0.89780755,3803.3,3803.2,4.014]
[1753870569519,1.38010755,3803.3,3803.2,4.014]
[1753870570626,4.85370755,3803.3,3803.2,4.014]
[1753870570811,7.65740485,3803.3,3802.9,0.001]
[1753870571131,3.53410302,3803.0,3802.9,0.001]
[1753870571305,4.05334119,3803.0,3802.9,0.001]
[1753870571626,4.98274031,3803.0,3802.9,0.001]
[1753870572126,2.35323729,3803.0,3802.9,0.001]
[1753870572686,2.50113481,3803.0,3802.9,0.001]
[1753870572890,6.38824869,3803.0,3802.9,0.001]
[1753870573823,3.75874567,3803.0,3802.9,0.001]
[1753870574131,6.75874567,3803.0,3802.9,0.001]
[1753870575642,0.7875,3803.7,3802.9,0.9326]
[1753870575803,0.6407292,3803.6,3802.9,0.001]
[1753870576134,0.49286866,3803.5,3803.0,0.9316]
[1753870576335,0.49286866,3803.4,3803.1,0.9316]
[1753870576630,0.49286866,3803.3,3803.2,4.024]
[1753870576837,0.49286866,3803.3,3803.2,7.58496474]
[1753870577051,0.49286313,3803.3,3803.2,8.60913536]
[1753870577208,0.49285862,3803.3,3803.2,5.97977062]
[1753870577396,0.49285862,3803.3,3803.2,7.58496474]
[1753870577791,0.49285862,3803.3,3803.2,8.36436474]
[1753870578037,0.24642931,3803.3,3803.2,8.36436474]
[1753870578339,0.49284829,3803.3,3803.2,4.9556]
[1753870578505,0.49284829,3803.3,3803.2,0.4654]
[1753870578710,0.49284829,3803.3,3803.2,4.028]
[1753870579140,0.49284829,3803.3,3803.2,7.58896474]
[1753870580338,0.49289583,3803.3,3803.2,7.58896474]
[1753870580995,0.64077268,3803.3,3803.2,7.58896474]
[1753870581190,0.64077268,3803.3,3803.2,4.9596]
[1753870581692,0.64077268,3803.3,3803.2,7.58896474]
[1753870581896,0.64077268,3803.3,3803.2,4.9596]
[1753870583739,0.64077268,3803.3,3803.2,7.58896474]
[1753870584038,0.64077268,3803.3,3803.2,4.9596]
[1753870584914,0.64077268,3803.3,3803.2,4.9096]
[1753870585535,0.64077268,3803.3,3803.2,5.0408]
[1753870585757,0.64077268,3803.3,3803.2,3.69216474]
[1753870585913,0.49289583,3803.3,3803.2,7.71616474]
[1753870586252,0.49289583,3803.3,3803.2,5.0868]
[1753870586955,1.89930224,3803.3,3803.2,4.023]
[1753870587152,2.08923246,3803.3,3803.2,4.023]
[1753870587652,0.68282605,3803.3,3803.2,4.023]
[1753870588010,0.49289583,3803.3,3803.2,4.9546]
[1753870588329,0.24642931,3803.3,3803.2,5.882]
[1753870589826,0.24648117,3803.3,3803.2,5.882]
[1753870590648,0.24648117,3803.3,3803.2,0.1312]
[1753870590950,0.95894193,3803.3,3803.2,4.023]
[1753870591119,1.49449612,3803.3,3803.2,4.023]
[1753870592220,1.02849768,3803.3,3803.2,4.023]
[1753870592443,0.49294349,3803.3,3803.2,4.9441]
[1753870593048,0.49294349,3803.3,3803.2,4.4938]
[1753870593257,0.49294349,3803.3,3803.2,4.023]